[Event "9th HDBank Open 2019"]
[Site "Ho Chi Minh City"]
[Date "2019.03.09"]
[Round "4.2"]
[White "Chanda, Sandipan"]
[Black "Bogdanovich, Stanislav"]
[Result "0-1"]
[ECO "E46"]
[WhiteElo "2534"]
[BlackElo "2536"]
[Annotator "ChessBase"]
[PlyCount "94"]
[EventDate "2019.03.07"]
[EventType "swiss"]
[EventCountry "VIE"]
[SourceTitle "playchess.com"]
[Source "ChessBase"]
[SourceQuality "1"]
[TimeControl "5400+30"]

1. d4 {[%emt 0:01:22]} Nf6 {[%emt 0:00:02]} 2. c4 {[%emt 0:00:17]} e6 {[%emt 0:00:26]} 3. Nc3 {[%emt 0:00:14]} Bb4 {[%emt 0:00:20]} 4. e3 {[%emt 0:00:16]} O-O {[%emt 0:00:24]} 5. Bd2 {[%emt 0:00:10]} b6 {[%emt 0:00:16]} 6. Nf3 {[%emt 0:00:24]} Bb7 {[%emt 0:00:06]} 7. Bd3 {[%emt 0:00:11]} d5 {[%emt 0:00:16]} 8. cxd5 {[%emt 0:00:11]} exd5 {[%emt 0:00:07]} 9. Rc1 {[%emt 0:00:15]} Nbd7 {[%emt 0:00:24]} 10. O-O {[%emt 0:00:16]} Be7 {[%emt 0:00:28]} 11. Be1 {[%emt 0:05:36]} c5 {[%emt 0:03:04]} 12. Ne5 {[%emt 0:00:08]} cxd4 {[%emt 0:00:09]} 13. Nxd7 {[%emt 0:00:09]} Qxd7 {[%emt 0:00:06]} 14. exd4 {[%emt 0:00:12]} Ne4 {[%emt 0:05:27]} 15. f3 {[%emt 0:00:08]} Nd6 {[%emt 0:02:29]} 16. Bf2 {[%emt 0:06:57]} Rac8 {[%emt 0:04:57]} 17. b3 {[%emt 0:06:37]} Bg5 {[%emt 0:09:58]} 18. Rc2 {[%emt 0:00:17]} Nf5 19. f4 {[%emt 0:05:28]} Be7 {[%emt 0:03:23]} 20. Qg4 {[%emt 0:27:31]} g6 {[%emt 0:03:25]} 21. Ne2 {[%emt 0:10:05]} h5 {[%emt 0:14:26]} 22. Qh3 {[%emt 0:00:24]} Rxc2 {[%emt 0:02:52]} 23. Bxc2 {[%emt 0:00:08]} Ba6 {[%emt 0:01:03]} 24. Ng3 {[%emt 0:02:12]} Bxf1 {[%emt 0:01:34]} 25. Bxf5 {[%emt 0:00:35]} Qd6 {[%emt 0:03:46]} 26. Nxf1 {[%emt 0:05:51]} gxf5 {[%emt 0:00:20]} 27. Qxf5 {[%emt 0:01:25]} Qf6 {[%emt 0:10:45]} 28. Qxd5 {[%emt 0:06:27]} Qxf4 {[%emt 0:00:15]} 29. Be3 {[%emt 0:03:14]} Qg4 {[%emt 0:00:37]} 30. Qe5 {[%emt 0:00:48]} Qe6 {[%emt 0:06:46]} 31. Qxh5 {[%emt 0:00:10]} Bf6 {[%emt 0:01:25]} 32. d5 {[%emt 0:06:49]} Qe4 {[%emt 0:00:21]} 33. Qh6 {[%emt 0:00:20]} Bg7 {[%emt 0:01:10]} 34. Qg5 {[%emt 0:01:02]} f6 {[%emt 0:03:12]} 35. Qg3 {[%emt 0:00:03]} f5 {[%emt 0:02:54]} 36. Bf4 {[%emt 0:04:31]} Qxd5 {[%emt 0:03:11]} 37. Ne3 {[%emt 0:00:03]} Qd4 {[%emt 0:03:00]} 38. h4 {[%emt 0:00:16]} Re8 {[%emt 0:00:54]} 39. Kh1 {[%emt 0:01:00]} Qf6 {[%emt 0:03:53]} 40. h5 {[%emt 0:00:45]} Kh7 {[%emt 0:00:38]} 41. Kh2 {[%emt 0:01:13]} Re4 {[%emt 0:00:40]} 42. Nd5 {[%emt 0:01:19]} Qe6 {[%emt 0:03:24]} 43. Nc7 {[%emt 0:02:46]} Qf6 {[%emt 0:02:46]} 44. Nd5 {[%emt 0:00:57]} Qf7 {[%emt 0:00:13]} 45. h6 {[%emt 0:00:04]} Bd4 {[%emt 0:00:45]} 46. Ne3 {[%emt 0:03:15]} Bxe3 {[%emt 0:00:06]} 47. Bxe3 {[%emt 0:00:06]} f4 {[%emt 0:00:03]} 0-1

[Event "9th HDBank Open 2019"]
[Site "Ho Chi Minh City"]
[Date "2019.03.09"]
[Round "4.4"]
[White "Mareco, Sandro"]
[Black "Shyaamnikhil P"]
[Result "1-0"]
[ECO "A21"]
[WhiteElo "2666"]
[BlackElo "2429"]
[Annotator "RC"]
[PlyCount "45"]
[EventDate "2019.03.07"]
[EventType "swiss"]
[EventCountry "VIE"]
[SourceTitle "playchess.com"]
[Source "ChessBase"]
[SourceQuality "1"]
[TimeControl "5400+30"]

1. c4 {[%emt 0:00:00]} e5 {[%emt 0:03:01]} 2. Nc3 {[%emt 0:00:00]} d6 {[%emt 0:02:06]} 3. g3 {[%emt 0:00:07]} f5 {[%emt 0:01:06]} 4. Bg2 {[%emt 0:00:07]} Nf6 {[%emt 0:00:10]} 5. e3 {[%emt 0:00:14]} c6 {[%emt 0:02:49]} 6. Nge2 {[%emt 0:00:44]} Be7 {[%emt 0:00:26]} 7. O-O {[%emt 0:00:27]} O-O {[%emt 0:01:19]} 8. b3 {[%emt 0:02:56]} Be6 {[%emt 0:03:57]} 9. f4 {[%emt 0:06:17]} g6 {[%emt 0:10:19]} 10. h3 {[%emt 0:12:41]} Nh5 11. d4 {[%emt 0:02:47]} exf4 {[%emt 0:27:47]} 12. d5 {[%emt 0:00:18]} Bf7 {[%emt 0:01:05]} 13. exf4 {[%emt 0:02:03]} Qb6+ {[%emt 0:06:07]} 14. Kh2 {[%emt 0:00:09]} Nd7 {[%emt 0:01:45]} 15. Bb2 {[%emt 0:05:50]} Ng7 {[%emt 0:03:31]} 16. dxc6 {[%emt 0:04:03]} bxc6 {[%emt 0:00:08]} 17. Qd4 {[%emt 0:00:29]} Bf6 {[%emt 0:03:25]} 18. Qxd6 {[%emt 0:03:19]} Rad8 {[%emt 0:00:26]} 19. Qxc6 {[%emt 0:00:17]} Nc5 {[%emt 0:00:54]} 20. Ba3 {[%emt 0:02:12]} Rc8 {[%emt 0:01:30]} 21. Qxb6 {[%emt 0:00:48]} axb6 {[%emt 0:00:07]} 22. Rad1 {[%emt 0:00:06]} Rfe8 {[%emt 0:00:27]} 23. Rd6 {[%emt 0:03:42]} 1-0

[Event "9th HDBank Open 2019"]
[Site "Ho Chi Minh City"]
[Date "2019.03.09"]
[Round "4.6"]
[White "Li, Yankai"]
[Black "Van Wely, Loek"]
[Result "0-1"]
[ECO "A40"]
[WhiteElo "2434"]
[BlackElo "2612"]
[Annotator "ChessBase"]
[PlyCount "112"]
[EventDate "2019.03.07"]
[EventType "swiss"]
[EventCountry "VIE"]
[SourceTitle "playchess.com"]
[Source "ChessBase"]
[SourceQuality "1"]
[TimeControl "5400+30"]

1. d4 {[%emt 0:02:22]} Nf6 {[%emt 0:00:00]} 2. c4 {[%emt 0:00:03]} e6 {[%emt 0:00:00]} 3. g3 {[%emt 0:00:04]} c5 {[%emt 0:00:00]} 4. Nf3 {[%emt 0:00:04]} cxd4 {[%emt 0:03:07]} 5. Nxd4 {[%emt 0:00:05]} d5 {[%emt 0:00:08]} 6. Bg2 {[%emt 0:00:58]} e5 {[%emt 0:00:05]} 7. Nb3 {[%emt 0:00:11]} d4 {[%emt 0:00:13]} 8. O-O {[%emt 0:00:06]} Nc6 {[%emt 0:00:19]} 9. f4 {[%emt 0:00:08]} e4 {[%emt 0:01:26]} 10. f5 {[%emt 0:00:06]} g6 {[%emt 0:00:13]} 11. Na3 {[%emt 0:06:38]} Bxf5 {[%emt 0:00:28]} 12. Nb5 {[%emt 0:00:49]} Bg7 {[%emt 0:11:47]} 13. N3xd4 {[%emt 0:07:11]} Nxd4 {[%emt 0:00:34]} 14. Qxd4 Qxd4+ {[%emt 0:27:55]} 15. Nxd4 {[%emt 0:04:56]} Bd7 {[%emt 0:01:56]} 16. Bf4 {[%emt 0:11:10]} Ng4 {[%emt 0:03:45]} 17. Rad1 {[%emt 0:00:10]} f5 {[%emt 0:00:47]} 18. h3 {[%emt 0:13:18]} Ne5 {[%emt 0:00:29]} 19. Bxe5 {[%emt 0:00:13]} Bxe5 {[%emt 0:00:06]} 20. g4 {[%emt 0:00:02]} fxg4 {[%emt 0:02:37]} 21. hxg4 {[%emt 0:00:41]} Bxg4 {[%emt 0:03:20]} 22. Bxe4 {[%emt 0:05:41]} O-O-O {[%emt 0:03:12]} 23. Bd5 {[%emt 0:00:13]} Rhf8 {[%emt 0:04:44]} 24. Rxf8 {[%emt 0:28:14]} Rxf8 {[%emt 0:00:18]} 25. Nf3 {[%emt 0:00:36]} Bf4 {[%emt 0:06:20]} 26. Rd3 {[%emt 0:02:37]} h5 {[%emt 0:03:16]} 27. c5 {[%emt 0:01:49]} Re8 {[%emt 0:07:05]} 28. e4 {[%emt 0:02:10]} g5 {[%emt 0:02:29]} 29. Nd4 {[%emt 0:01:06]} h4 {[%emt 0:03:10]} 30. Nb5 {[%emt 0:01:29]} Kb8 {[%emt 0:05:46]} 31. Rb3 {[%emt 0:03:02]} Bd1 {[%emt 0:00:38]} 32. Ra3 {[%emt 0:03:16]} g4 {[%emt 0:03:38]} 33. Nd6 {[%emt 0:03:27]} Rf8 {[%emt 0:03:00]} 34. Rd3 {[%emt 0:00:46]} Bf3 {[%emt 0:02:35]} 35. e5 {[%emt 0:03:05]} Bxe5 {[%emt 0:00:13]} 36. Bxf3 {[%emt 0:00:09]} Rxf3 {[%emt 0:00:23]} 37. Rxf3 {[%emt 0:00:26]} gxf3 {[%emt 0:00:02]} 38. Ne4 {[%emt 0:00:07]} Bd4+ {[%emt 0:01:01]} 39. Kh2 {[%emt 0:00:20]} Bxb2 {[%emt 0:00:14]} 40. Kh3 {[%emt 0:00:52]} Bd4 {[%emt 0:00:09]} 41. Kxh4 {[%emt 0:00:04]} f2 {[%emt 0:00:21]} 42. Nd2 {[%emt 0:00:04]} Kc7 {[%emt 0:00:19]} 43. Kg4 {[%emt 0:00:03]} Kc6 {[%emt 0:00:26]} 44. Kf3 {[%emt 0:00:03]} Kxc5 {[%emt 0:00:13]} 45. Ke4 {[%emt 0:00:02]} Bc3 {[%emt 0:01:03]} 46. Nf1 {[%emt 0:00:03]} Kb4 {[%emt 0:00:42]} 47. Kd3 {[%emt 0:00:04]} Bf6 {[%emt 0:00:47]} 48. Kc2 {[%emt 0:00:08]} Ka3 {[%emt 0:00:06]} 49. Kb1 {[%emt 0:00:05]} Bg5 {[%emt 0:00:18]} 50. Ka1 {[%emt 0:00:11]} Bf4 {[%emt 0:00:05]} 51. Kb1 {[%emt 0:00:02]} a5 {[%emt 0:00:05]} 52. Ka1 {[%emt 0:00:02]} a4 {[%emt 0:00:05]} 53. Kb1 {[%emt 0:00:02]} b5 {[%emt 0:00:23]} 54. Ka1 {[%emt 0:00:03]} b4 {[%emt 0:00:07]} 55. Kb1 {[%emt 0:00:02]} b3 {[%emt 0:00:06]} 56. axb3 {[%emt 0:00:12]} Kxb3 {[%emt 0:00:07]} 0-1

[Event "9th HDBank Open 2019"]
[Site "Ho Chi Minh City"]
[Date "2019.03.09"]
[Round "4.7"]
[White "Laylo, Darwin"]
[Black "Popov, Ivan"]
[Result "1/2-1/2"]
[ECO "D30"]
[WhiteElo "2430"]
[BlackElo "2581"]
[Annotator "ChessBase"]
[PlyCount "41"]
[EventDate "2019.03.07"]
[EventType "swiss"]
[EventCountry "VIE"]
[SourceTitle "playchess.com"]
[Source "ChessBase"]
[SourceQuality "1"]
[TimeControl "5400+30"]

1. c4 {[%emt 0:07:11]} Nf6 {[%emt 0:00:00]} 2. Nf3 {[%emt 0:02:27]} e6 {[%emt 0:00:15]} 3. d4 {[%emt 0:00:07]} d5 {[%emt 0:00:07]} 4. Bg5 {[%emt 0:00:15]} dxc4 {[%emt 0:02:00]} 5. Nbd2 {[%emt 0:03:55]} c5 {[%emt 0:13:32]} 6. Nxc4 {[%emt 0:09:23]} cxd4 {[%emt 0:09:53]} 7. Qxd4 {[%emt 0:00:27]} Qxd4 {[%emt 0:01:24]} 8. Nxd4 {[%emt 0:00:02]} Ne4 {[%emt 0:00:32]} 9. Be3 {[%emt 0:01:32]} Bb4+ {[%emt 0:00:54]} 10. Nd2 Ke7 {[%emt 0:12:58]} 11. N4b3 {[%emt 0:04:33]} Rd8 {[%emt 0:12:15]} 12. a3 {[%emt 0:01:06]} Nxd2 {[%emt 0:00:09]} 13. Nxd2 {[%emt 0:08:39]} Ba5 {[%emt 0:00:07]} 14. O-O-O {[%emt 0:04:16]} Nd7 {[%emt 0:06:24]} 15. g3 {[%emt 0:05:49]} Bb6 {[%emt 0:04:47]} 16. Bxb6 {[%emt 0:09:56]} Nxb6 {[%emt 0:00:02]} 17. Bg2 {[%emt 0:01:27]} Bd7 {[%emt 0:00:48]} 18. b3 {[%emt 0:05:53]} Bc6 {[%emt 0:07:53]} 19. Bxc6 {[%emt 0:00:20]} Rac8 {[%emt 0:00:06]} 20. Kb2 {[%emt 0:00:45]} Rxc6 {[%emt 0:00:03]} 21. Nf3 {[%emt 0:02:21]} 1/2-1/2

[Event "9th HDBank Open 2019"]
[Site "Ho Chi Minh City"]
[Date "2019.03.09"]
[Round "4.8"]
[White "Tran, Tuan Minh"]
[Black "Laxman, R.R."]
[Result "1/2-1/2"]
[ECO "A25"]
[WhiteElo "2556"]
[BlackElo "2425"]
[Annotator "ChessBase"]
[PlyCount "145"]
[EventDate "2019.03.07"]
[EventType "swiss"]
[EventCountry "VIE"]
[SourceTitle "playchess.com"]
[Source "ChessBase"]
[SourceQuality "1"]
[TimeControl "5400+30"]

1. c4 {[%emt 0:06:41]} e5 {[%emt 0:00:18]} 2. g3 {[%emt 0:00:27]} Nc6 {[%emt 0:00:55]} 3. Bg2 {[%emt 0:00:09]} d6 {[%emt 0:00:23]} 4. Nc3 {[%emt 0:00:10]} Be6 {[%emt 0:00:07]} 5. d3 {[%emt 0:00:34]} Qd7 {[%emt 0:00:07]} 6. Rb1 {[%emt 0:00:25]} g6 {[%emt 0:00:46]} 7. b4 {[%emt 0:00:43]} Bg7 {[%emt 0:01:05]} 8. a4 {[%emt 0:03:59]} a6 {[%emt 0:01:51]} 9. Nf3 {[%emt 0:01:29]} h6 {[%emt 0:02:51]} 10. Nd5 {[%emt 0:05:28]} Nce7 {[%emt 0:04:39]} 11. e4 {[%emt 0:01:19]} Nxd5 {[%emt 0:00:54]} 12. cxd5 {[%emt 0:06:22]} Bh3 {[%emt 0:01:24]} 13. O-O {[%emt 0:00:07]} Bxg2 {[%emt 0:00:08]} 14. Kxg2 {[%emt 0:00:02]} Nf6 {[%emt 0:05:09]} 15. Nd2 {[%emt 0:05:48]} h5 16. h3 {[%emt 0:01:42]} b5 {[%emt 0:10:18]} 17. Bb2 {[%emt 0:16:26]} h4 {[%emt 0:02:19]} 18. g4 {[%emt 0:05:21]} c6 {[%emt 0:01:32]} 19. dxc6 {[%emt 0:06:08]} Qxc6 {[%emt 0:01:06]} 20. Nf3 {[%emt 0:01:47]} bxa4 {[%emt 0:10:58]} 21. Ra1 {[%emt 0:00:45]} Nd7 {[%emt 0:03:45]} 22. Qxa4 {[%emt 0:01:07]} Qxa4 {[%emt 0:09:02]} 23. Rxa4 {[%emt 0:00:08]} Ke7 {[%emt 0:00:03]} 24. Rfa1 {[%emt 0:00:32]} Rab8 {[%emt 0:01:22]} 25. Bc3 {[%emt 0:00:22]} f5 {[%emt 0:04:18]} 26. gxf5 {[%emt 0:01:39]} gxf5 {[%emt 0:00:02]} 27. Rxa6 {[%emt 0:00:22]} fxe4 {[%emt 0:00:20]} 28. dxe4 {[%emt 0:00:05]} Rhc8 {[%emt 0:00:16]} 29. Bd2 {[%emt 0:03:17]} Bf6 {[%emt 0:00:31]} 30. Nh2 {[%emt 0:00:59]} Rc4 {[%emt 0:03:23]} 31. Re1 {[%emt 0:00:14]} Ke6 {[%emt 0:01:15]} 32. Ng4 {[%emt 0:02:27]} Bd8 {[%emt 0:01:20]} 33. Ra3 {[%emt 0:05:34]} Bb6 {[%emt 0:02:18]} 34. Rf3 {[%emt 0:03:18]} Bd4 {[%emt 0:00:49]} 35. Nh6 {[%emt 0:03:03]} Rc2 {[%emt 0:01:07]} 36. Bg5 {[%emt 0:02:08]} Rf8 {[%emt 0:01:05]} 37. Bxh4 {[%emt 0:01:20]} Rxf3 {[%emt 0:02:08]} 38. Kxf3 {[%emt 0:00:01]} Rc3+ {[%emt 0:00:08]} 39. Kg2 {[%emt 0:00:50]} Rb3 {[%emt 0:00:12]} 40. Rg1 {[%emt 0:06:45]} Rxb4 {[%emt 0:00:34]} 41. Kh2 {[%emt 0:01:53]} Nc5 {[%emt 0:00:08]} 42. Rg4 {[%emt 0:01:29]} Bc3 {[%emt 0:06:33]} 43. Rg6+ {[%emt 0:04:41]} Kd7 {[%emt 0:00:02]} 44. f3 {[%emt 0:00:35]} Rb2+ {[%emt 0:00:37]} 45. Rg2 {[%emt 0:00:17]} Bd2 {[%emt 0:00:37]} 46. Ng4 {[%emt 0:01:42]} Nd3 {[%emt 0:01:09]} 47. Bg3 {[%emt 0:01:23]} Nf4 {[%emt 0:00:26]} 48. Rf2 {[%emt 0:00:12]} Nd3 {[%emt 0:00:21]} 49. Re2 {[%emt 0:00:21]} Nf4 {[%emt 0:00:11]} 50. Rf2 {[%emt 0:00:01]} Nd3 {[%emt 0:00:07]} 51. Rg2 {[%emt 0:00:03]} Nf4 {[%emt 0:00:33]} 52. Bxf4 {[%emt 0:01:11]} Bxf4+ {[%emt 0:00:02]} 53. Kh1 {[%emt 0:00:06]} Rb1+ {[%emt 0:01:20]} 54. Rg1 {[%emt 0:00:01]} Rb2 {[%emt 0:00:59]} 55. h4 {[%emt 0:01:39]} Ke6 {[%emt 0:00:03]} 56. Rd1 {[%emt 0:00:38]} Rb3 {[%emt 0:00:20]} 57. Kg2 {[%emt 0:00:07]} Rb2+ {[%emt 0:00:02]} 58. Kh3 {[%emt 0:00:22]} Rb3 {[%emt 0:00:05]} 59. Rf1 {[%emt 0:01:58]} d5 {[%emt 0:00:06]} 60. exd5+ {[%emt 0:00:03]} Kxd5 {[%emt 0:00:04]} 61. h5 {[%emt 0:01:03]} Ke6 {[%emt 0:00:06]} 62. Kh4 {[%emt 0:00:33]} Kf5 {[%emt 0:00:17]} 63. h6 {[%emt 0:00:04]} Kg6 {[%emt 0:01:13]} 64. Ra1 {[%emt 0:01:02]} Bg5+ {[%emt 0:00:14]} 65. Kg3 {[%emt 0:00:05]} Bf4+ {[%emt 0:00:08]} 66. Kg2 {[%emt 0:00:12]} Rb2+ {[%emt 0:01:02]} 67. Kh3 {[%emt 0:00:01]} Rb6 {[%emt 0:01:28]} 68. Ra5 {[%emt 0:00:42]} Re6 {[%emt 0:00:07]} 69. Kh4 {[%emt 0:00:52]} Bg5+ {[%emt 0:00:04]} 70. Kg3 {[%emt 0:00:06]} Bf4+ {[%emt 0:00:12]} 71. Kh4 {[%emt 0:00:16]} Bg5+ {[%emt 0:00:04]} 72. Kg3 {[%emt 0:00:22]} Bf4+ {[%emt 0:00:01]} 73. Kh4 1/2-1/2

[Event "9th HDBank Open 2019"]
[Site "Ho Chi Minh City"]
[Date "2019.03.09"]
[Round "4.9"]
[White "Megaranto, Susanto"]
[Black "Cao, Sang"]
[Result "1-0"]
[ECO "A47"]
[WhiteElo "2526"]
[BlackElo "2385"]
[Annotator "ChessBase"]
[PlyCount "137"]
[EventDate "2019.03.07"]
[EventType "swiss"]
[EventCountry "VIE"]
[SourceTitle "playchess.com"]
[Source "ChessBase"]
[SourceQuality "1"]
[TimeControl "5400+30"]

1. d4 {[%emt 0:00:00]} Nf6 {[%emt 0:00:04]} 2. Nf3 {[%emt 0:00:00]} b6 {[%emt 0:00:16]} 3. Bg5 {[%emt 0:00:30]} Bb7 {[%emt 0:00:17]} 4. e3 {[%emt 0:00:26]} e6 {[%emt 0:00:56]} 5. Nbd2 {[%emt 0:01:10]} Be7 {[%emt 0:00:19]} 6. Bd3 {[%emt 0:00:30]} h6 {[%emt 0:00:48]} 7. Bxf6 {[%emt 0:00:47]} Bxf6 {[%emt 0:00:06]} 8. O-O {[%emt 0:00:21]} d6 {[%emt 0:01:27]} 9. c3 {[%emt 0:00:56]} Nd7 {[%emt 0:01:10]} 10. Qe2 {[%emt 0:00:30]} a6 {[%emt 0:00:05]} 11. a4 {[%emt 0:07:13]} O-O {[%emt 0:04:18]} 12. e4 {[%emt 0:05:07]} e5 {[%emt 0:02:44]} 13. dxe5 {[%emt 0:00:11]} dxe5 {[%emt 0:03:27]} 14. Rfd1 {[%emt 0:02:35]} Qe7 {[%emt 0:01:56]} 15. Nc4 {[%emt 0:10:04]} Rfd8 16. b4 {[%emt 0:08:17]} Nf8 {[%emt 0:16:21]} 17. Ne3 {[%emt 0:07:33]} a5 {[%emt 0:13:13]} 18. Nf5 {[%emt 0:02:40]} Qe8 {[%emt 0:01:38]} 19. Bb5 {[%emt 0:00:37]} Rxd1+ {[%emt 0:01:20]} 20. Rxd1 {[%emt 0:04:25]} Qe6 {[%emt 0:00:25]} 21. Qc2 {[%emt 0:08:58]} Be7 {[%emt 0:13:10]} 22. Ne3 {[%emt 0:07:49]} Bf6 {[%emt 0:11:18]} 23. h3 {[%emt 0:11:07]} g6 {[%emt 0:01:32]} 24. Bc4 {[%emt 0:00:41]} Qe8 {[%emt 0:02:25]} 25. Bd5 {[%emt 0:01:02]} c6 {[%emt 0:01:45]} 26. Bb3 {[%emt 0:00:23]} Ba6 {[%emt 0:04:34]} 27. Ng4 {[%emt 0:05:30]} Bg7 {[%emt 0:01:23]} 28. Rd6 {[%emt 0:01:01]} Bc8 {[%emt 0:02:27]} 29. Nf6+ {[%emt 0:01:24]} Bxf6 {[%emt 0:00:03]} 30. Rxf6 {[%emt 0:00:07]} Ra7 {[%emt 0:00:47]} 31. Qd2 {[%emt 0:00:58]} Kg7 {[%emt 0:01:04]} 32. Rd6 {[%emt 0:02:06]} Rd7 {[%emt 0:00:33]} 33. Rxd7 {[%emt 0:00:38]} Qxd7 {[%emt 0:00:14]} 34. Qe3 {[%emt 0:00:05]} Qc7 {[%emt 0:02:55]} 35. bxa5 {[%emt 0:00:41]} bxa5 {[%emt 0:00:02]} 36. Qc5 {[%emt 0:00:15]} f6 {[%emt 0:01:03]} 37. Nd2 {[%emt 0:02:24]} Ne6 {[%emt 0:00:22]} 38. Bxe6 {[%emt 0:01:58]} Bxe6 {[%emt 0:00:02]} 39. Kf1 {[%emt 0:00:30]} h5 {[%emt 0:02:37]} 40. h4 {[%emt 0:00:52]} Qb7 {[%emt 0:04:46]} 41. Ke2 {[%emt 0:01:44]} Qa6+ {[%emt 0:01:13]} 42. c4 {[%emt 0:00:41]} Bf7 {[%emt 0:00:40]} 43. Kd3 {[%emt 0:00:28]} Qc8 {[%emt 0:02:08]} 44. f3 {[%emt 0:00:33]} Qe6 {[%emt 0:02:39]} 45. Nb3 {[%emt 0:00:50]} f5 {[%emt 0:00:42]} 46. Nd2 {[%emt 0:01:38]} Qf6 {[%emt 0:00:33]} 47. Qxa5 {[%emt 0:00:57]} fxe4+ {[%emt 0:00:18]} 48. Nxe4 {[%emt 0:00:15]} Qxh4 {[%emt 0:00:45]} 49. Qxe5+ {[%emt 0:00:04]} Kg8 {[%emt 0:00:51]} 50. Qb8+ {[%emt 0:04:25]} Kg7 {[%emt 0:00:16]} 51. Qe5+ {[%emt 0:00:33]} Kg8 {[%emt 0:00:06]} 52. Nd6 {[%emt 0:00:32]} Qh1 {[%emt 0:00:45]} 53. Qf6 {[%emt 0:00:30]} Qd1+ {[%emt 0:00:43]} 54. Ke3 {[%emt 0:00:15]} Qe1+ {[%emt 0:00:20]} 55. Kf4 {[%emt 0:00:06]} Qd2+ {[%emt 0:00:55]} 56. Kg3 {[%emt 0:00:06]} Qe1+ {[%emt 0:00:26]} 57. Kh2 {[%emt 0:00:06]} Be8 {[%emt 0:00:16]} 58. a5 {[%emt 0:01:02]} h4 {[%emt 0:00:48]} 59. Qg5 {[%emt 0:00:17]} c5 {[%emt 0:00:36]} 60. a6 {[%emt 0:00:34]} Kh7 {[%emt 0:00:28]} 61. Nxe8 {[%emt 0:01:11]} Qxe8 {[%emt 0:00:03]} 62. Qxh4+ {[%emt 0:00:07]} Kg8 {[%emt 0:00:57]} 63. Qg3 {[%emt 0:00:41]} Kf7 {[%emt 0:00:27]} 64. Qc7+ {[%emt 0:00:14]} Ke6 {[%emt 0:00:17]} 65. Qb6+ {[%emt 0:00:25]} Kf7 {[%emt 0:00:23]} 66. Qxc5 {[%emt 0:00:30]} Qh8+ {[%emt 0:00:18]} 67. Kg3 {[%emt 0:00:20]} Qb8+ {[%emt 0:00:07]} 68. f4 {[%emt 0:00:25]} Qb3+ {[%emt 0:00:17]} 69. Kh2 {[%emt 0:00:05]} 1-0

[Event "9th HDBank Open 2019"]
[Site "Ho Chi Minh City"]
[Date "2019.03.09"]
[Round "4.10"]
[White "Xu, Yi"]
[Black "Chu, Wei Chao"]
[Result "1-0"]
[ECO "B12"]
[WhiteElo "2520"]
[BlackElo "2373"]
[Annotator "ChessBase"]
[PlyCount "43"]
[EventDate "2019.03.07"]
[EventType "swiss"]
[EventCountry "VIE"]
[SourceTitle "playchess.com"]
[Source "ChessBase"]
[SourceQuality "1"]
[TimeControl "5400+30"]

1. e4 {[%emt 0:01:12]} c6 {[%emt 0:00:19]} 2. d4 {[%emt 0:00:06]} d5 {[%emt 0:00:04]} 3. e5 {[%emt 0:00:34]} c5 {[%emt 0:00:07]} 4. dxc5 {[%emt 0:00:05]} e6 {[%emt 0:00:04]} 5. a3 {[%emt 0:00:04]} Bxc5 {[%emt 0:00:18]} 6. b4 {[%emt 0:00:11]} Bb6 {[%emt 0:00:07]} 7. Qg4 {[%emt 0:01:18]} Ne7 {[%emt 0:00:05]} 8. Nf3 {[%emt 0:01:23]} Ng6 {[%emt 0:02:31]} 9. Bd3 {[%emt 0:01:11]} a5 {[%emt 0:15:31]} 10. Bb2 {[%emt 0:03:34]} axb4 {[%emt 0:00:06]} 11. axb4 {[%emt 0:01:12]} Rxa1 {[%emt 0:00:06]} 12. Bxa1 {[%emt 0:00:03]} Qe7 {[%emt 0:00:05]} 13. O-O {[%emt 0:02:38]} Na6 {[%emt 0:00:04]} 14. Bc3 Bd7 {[%emt 0:20:20]} 15. h4 {[%emt 0:24:10]} d4 {[%emt 0:14:29]} 16. b5 {[%emt 0:09:43]} Nb4 {[%emt 0:14:54]} 17. Bxb4 {[%emt 0:03:31]} Qxb4 {[%emt 0:00:49]} 18. h5 {[%emt 0:00:12]} Ne7 {[%emt 0:00:43]} 19. Qxg7 {[%emt 0:00:28]} Rg8 {[%emt 0:00:05]} 20. Qxh7 {[%emt 0:00:04]} Bxb5 {[%emt 0:00:41]} 21. h6 {[%emt 0:03:56]} Kf8 {[%emt 0:11:59]} 22. Nbd2 {[%emt 0:01:16]} 1-0

[Event "9th HDBank Open 2019"]
[Site "Ho Chi Minh City"]
[Date "2019.03.09"]
[Round "4.11"]
[White "Karthik Venkataraman"]
[Black "Kulkarni, Rakesh"]
[Result "1-0"]
[ECO "A44"]
[WhiteElo "2494"]
[BlackElo "2298"]
[Annotator "RC"]
[PlyCount "89"]
[EventDate "2019.03.07"]
[EventType "swiss"]
[EventCountry "VIE"]
[SourceTitle "playchess.com"]
[Source "ChessBase"]
[SourceQuality "1"]
[TimeControl "5400+30"]

1. d4 {[%emt 0:00:02]} c5 {[%emt 0:17:30]} 2. d5 {[%emt 0:00:59]} e5 {[%emt 0:00:07]} 3. e4 {[%emt 0:00:20]} d6 {[%emt 0:00:14]} 4. Nc3 {[%emt 0:00:08]} g6 {[%emt 0:00:47]} 5. Be2 {[%emt 0:01:41]} Bg7 {[%emt 0:01:17]} 6. Nf3 {[%emt 0:00:18]} Ne7 {[%emt 0:02:13]} 7. Nd2 {[%emt 0:00:25]} Nd7 {[%emt 0:07:28]} 8. a4 {[%emt 0:00:49]} O-O {[%emt 0:01:11]} 9. a5 {[%emt 0:00:27]} f5 {[%emt 0:03:56]} 10. h4 {[%emt 0:03:51]} Nf6 {[%emt 0:11:22]} 11. h5 Bd7 {[%emt 0:09:21]} 12. hxg6 {[%emt 0:10:01]} hxg6 {[%emt 0:06:55]} 13. Nc4 {[%emt 0:03:51]} Qc7 {[%emt 0:02:40]} 14. Bg5 {[%emt 0:02:04]} b5 {[%emt 0:09:53]} 15. axb6 {[%emt 0:00:18]} axb6 {[%emt 0:00:05]} 16. Rxa8 {[%emt 0:00:06]} Rxa8 {[%emt 0:00:03]} 17. Nxe5 {[%emt 0:00:23]} Nxe4 {[%emt 0:00:50]} 18. Nxe4 {[%emt 0:00:09]} fxe4 {[%emt 0:00:25]} 19. Nxd7 {[%emt 0:07:39]} Qxd7 {[%emt 0:00:05]} 20. c3 {[%emt 0:00:05]} Rf8 {[%emt 0:04:07]} 21. Rh4 {[%emt 0:10:51]} Qf5 {[%emt 0:05:09]} 22. Be3 {[%emt 0:01:08]} Qe5 {[%emt 0:02:54]} 23. Qc2 {[%emt 0:02:49]} Nf5 {[%emt 0:00:57]} 24. Rxe4 {[%emt 0:00:41]} Qh2 {[%emt 0:04:08]} 25. Bf3 {[%emt 0:05:13]} Ra8 {[%emt 0:07:32]} 26. Ke2 {[%emt 0:02:21]} Qg1 {[%emt 0:01:18]} 27. Qc1 {[%emt 0:03:42]} Qxc1 {[%emt 0:00:32]} 28. Bxc1 {[%emt 0:00:05]} Ra1 {[%emt 0:00:21]} 29. Bg5 {[%emt 0:11:49]} Ra2 {[%emt 0:00:07]} 30. g4 {[%emt 0:00:05]} Rxb2+ {[%emt 0:00:03]} 31. Kf1 {[%emt 0:00:04]} Nh6 {[%emt 0:00:05]} 32. Bxh6 {[%emt 0:00:07]} Bxh6 {[%emt 0:00:05]} 33. Re6 {[%emt 0:00:03]} Bf4 {[%emt 0:01:41]} 34. Rxg6+ {[%emt 0:00:45]} Kf7 {[%emt 0:00:01]} 35. Be4 {[%emt 0:00:07]} b5 {[%emt 0:01:11]} 36. g5 {[%emt 0:00:13]} Be5 {[%emt 0:00:10]} 37. Re6 {[%emt 0:00:19]} b4 {[%emt 0:00:46]} 38. f4 {[%emt 0:02:18]} Bxc3 {[%emt 0:00:54]} 39. f5 {[%emt 0:01:45]} c4 {[%emt 0:00:31]} 40. f6 {[%emt 0:00:16]} Bxf6 {[%emt 0:00:07]} 41. Rxf6+ {[%emt 0:00:08]} Kg7 {[%emt 0:00:51]} 42. Rxd6 {[%emt 0:00:47]} b3 {[%emt 0:00:07]} 43. Rd7+ {[%emt 0:00:09]} Kg8 {[%emt 0:00:35]} 44. Bf5 {[%emt 0:01:30]} Rc2 {[%emt 0:00:51]} 45. Be6+ {[%emt 0:00:53]} 1-0